bitfinex/quotes_SOLUSD_20241216
["timestamp","ask_amount","ask_price","bid_price","bid_amount"]
[1734384290044,11.42166543,217.92,217.85,9.77356543]
[1734384290247,9.77356543,217.89,217.81,1.30672711]
[1734384290407,9.77356543,217.89,217.82,9.77356543]
[1734384291229,6.0882,217.91,217.83,9.77356543]
[1734384291424,9.77356543,217.9,217.83,9.77356543]
[1734384291731,6.0882,217.91,217.87,9.77356543]
[1734384291930,1.6481,217.92,217.87,9.77356543]
[1734384293119,1.6481,217.92,217.86,9.77356543]
[1734384293828,11.42166543,217.92,217.84,5.43634602]
[1734384294017,11.42166543,217.92,217.86,9.77356543]
[1734384295538,1.6481,217.92,217.86,9.77356543]
[1734384296443,11.42166543,217.92,217.86,9.77356543]
[1734384296833,11.42166543,217.92,217.85,9.77356543]
[1734384298250,11.42166543,217.92,217.86,9.77356543]
[1734384299031,1.6481,217.92,217.86,9.77356543]
[1734384299949,9.77356543,217.91,217.84,5.43634602]
[1734384300155,9.77356543,217.9,217.84,5.43634602]
[1734384301851,1.6481,217.92,217.85,9.77356543]
[1734384302035,11.42166543,217.92,217.85,9.77356543]
[1734384302242,11.42166543,217.92,217.84,5.43634602]
[1734384302442,11.42166543,217.92,217.85,9.77356543]
[1734384302928,9.77356543,217.91,217.83,5.08110459]
[1734384303132,9.77356543,217.91,217.84,9.77356543]
[1734384303337,9.77356543,217.91,217.83,5.08110459]
[1734384303656,9.77356543,217.91,217.84,9.77356543]
[1734384304441,16.48345543,217.9,217.83,5.08110459]
[1734384304647,9.77356543,217.88,217.8,1.30767231]
[1734384304830,9.77356543,217.88,217.81,9.77356543]
[1734384305034,6.5844,217.9,217.84,9.77356543]
[1734384305345,6.5844,217.9,217.87,9.77356543]
[1734384306761,6.5844,217.9,217.86,9.77356543]
[1734384307658,2.78050181,217.99,217.81,10.51745061]
[1734384307659,1.5507,217.98,217.89,9.77356543]
[1734384307830,1.5507,217.98,217.94,9.77356543]
[1734384308145,1.5507,217.98,217.95,9.77356543]
[1734384308563,1.5507,217.98,217.96,9.77356543]
[1734384308858,1.5507,217.98,217.94,9.77356543]
[1734384310868,9.773566,218.04,217.97,9.77356543]
[1734384310869,20.0,218.03,217.97,9.77356543]
[1734384311177,11.32426543,218.04,217.97,9.77356543]
[1734384311339,9.89905543,218.03,217.96,9.77356543]
[1734384311530,9.89905543,218.01,217.9,6.12459567]
[1734384311733,9.89905543,218.01,217.94,9.77356543]
[1734384311963,9.89905543,218.01,217.9,5.43634602]
[1734384312266,1.5507,218.04,217.93,9.77356543]
[1734384312267,9.77356543,218.0,217.93,9.77356543]
[1734384314038,9.77356543,218.0,217.9,5.43634602]
[1734384314340,9.77356543,217.99,217.93,9.77356543]
[1734384315455,9.77356543,217.98,217.9,5.43634602]
[1734384315651,9.77356543,217.95,217.89,5.08110459]
[1734384315855,9.77356543,217.95,217.89,14.85467002]
[1734384318941,9.77356543,217.96,217.89,14.85467002]
[1734384321250,9.77356543,217.95,217.89,5.08110459]
[1734384321649,9.77356543,217.94,217.87,9.77356543]
[1734384323156,9.77356543,217.92,217.86,9.77356543]
[1734384324082,9.77356543,217.91,217.85,15.20991145]
[1734384324260,9.77356543,217.93,217.86,9.77356543]
[1734384325076,9.77356543,217.93,217.85,5.43634602]
[1734384325247,9.77356543,217.93,217.86,9.77356543]
[1734384326270,9.77356543,217.92,217.86,9.77356543]
[1734384327553,29.77356543,217.95,217.88,9.77356543]
[1734384327859,9.77356543,217.96,217.9,9.77356543]
[1734384328842,9.77356543,217.96,217.89,9.77356543]
[1734384329046,23.776884,217.98,217.9,9.77356543]
[1734384329241,9.77356543,217.96,217.9,9.77356543]
[1734384331486,9.89905543,217.97,217.9,9.77356543]
[1734384331688,9.77356543,217.95,217.89,9.77356543]
[1734384332272,9.77356543,217.95,217.88,9.77356543]
[1734384332693,9.77356543,217.89,217.83,5.08110459]
[1734384332864,9.77356543,217.88,217.83,5.08110459]
[1734384334391,9.77356543,217.89,217.83,14.85467002]
[1734384334765,9.77356543,217.88,217.81,9.77356543]
[1734384334971,9.77356543,217.88,217.81,13.36325895]
[1734384335295,1.6305,217.92,217.83,9.77356543]
[1734384335296,9.77356543,217.89,217.83,9.77356543]
[1734384335623,9.77356543,217.89,217.82,9.77356543]
[1734384336475,9.77356543,217.88,217.81,15.20991145]
[1734384339084,9.77356543,217.89,217.82,9.77356543]
[1734384340120,1.6305,217.92,217.82,9.77356543]
[1734384340121,1.6305,217.92,217.85,9.77356543]
[1734384340313,1.6305,217.92,217.86,9.77356543]
[1734384340510,11.40406543,217.92,217.85,9.77356543]
[1734384340724,9.77356543,217.91,217.85,9.77356543]
[1734384341597,9.77356543,217.91,217.84,9.77356543]
[1734384343159,9.77356543,217.9,217.83,20.29101604]
[1734384343926,9.77356543,217.89,217.83,20.29101604]
[1734384344726,9.89905543,217.91,217.84,9.77356543]
[1734384345998,9.89905543,217.91,217.83,10.51745061]
[1734384346200,9.89905543,217.91,217.84,9.77356543]
[1734384346938,0.12549,217.91,217.84,9.77356543]
[1734384347151,9.89905543,217.91,217.84,9.77356543]
[1734384348412,9.77356543,217.9,217.83,20.29101604]
[1734384349250,9.77356543,217.91,217.84,9.77356543]
[1734384350120,0.12549,217.92,217.85,9.77356543]
[1734384350335,9.89905543,217.92,217.85,9.77356543]
[1734384353426,0.12549,217.92,217.85,9.77356543]
[1734384353629,9.77356543,217.91,217.85,9.77356543]
[1734384354516,0.12549,217.92,217.83,10.51745061]
[1734384354517,9.77356543,217.9,217.83,10.51745061]
[1734384354724,9.77356543,217.9,217.83,20.29101604]
[1734384354920,0.12549,217.92,217.83,20.29101604]
[1734384354921,23.902374,217.92,217.83,20.29101604]
[1734384355123,9.77356543,217.9,217.83,20.29101604]
[1734384355517,23.902374,217.92,217.83,20.29101604]
[1734384355718,9.77356543,217.9,217.83,20.29101604]
[1734384361270,9.77356543,217.89,217.83,20.29101604]
[1734384361474,23.902374,217.92,217.77,1.5076]
[1734384361475,9.77356543,217.86,217.77,1.5076]
[1734384361655,9.77356543,217.86,217.8,9.77356543]
[1734384362852,9.77356543,217.86,217.81,9.77356543]
[1734384363265,9.77356543,217.86,217.8,9.77356543]
[1734384364755,9.77356543,217.83,217.78,5.43634602]
[1734384364955,9.77356543,217.82,217.76,9.77356543]
[1734384366255,9.77356543,217.81,217.72,1.6518]
[1734384366453,9.77356543,217.81,217.75,9.77356543]
[1734384367174,5.0,217.88,217.72,1.6518]
[1734384367175,9.77356543,217.8,217.72,1.6518]
[1734384367354,9.77356543,217.8,217.71,6.2321]
[1734384367355,9.77356543,217.78,217.68,9.5063395]
[1734384367673,9.77356543,217.77,217.72,9.77356543]
[1734384367871,1.5576,217.82,217.72,9.77356543]
[1734384367872,9.77356543,217.78,217.72,9.77356543]
[1734384368259,9.77356543,217.79,217.73,9.77356543]
[1734384368857,9.77356543,217.78,217.73,9.77356543]
[1734384369053,9.77356543,217.77,217.71,9.77356543]
[1734384370494,1.5576,217.82,217.74,9.77356543]
[1734384370788,9.77356543,217.81,217.75,9.77356543]
[1734384373227,9.77356543,217.8,217.74,9.77356543]
[1734384375579,1.5024,217.94,217.79,9.77356543]
[1734384375885,9.77356543,217.91,217.85,9.77356543]
[1734384376202,9.77356543,217.9,217.83,9.77356543]
[1734384376564,9.77356543,217.89,217.83,9.77356543]
[1734384376772,9.77356543,217.89,217.82,9.77356543]
[1734384377175,9.77356543,217.89,217.83,9.77356543]
[1734384377387,9.77356543,217.91,217.84,9.77356543]
[1734384378683,9.77356543,217.9,217.84,9.77356543]
[1734384378886,9.77356543,217.89,217.83,9.77356543]
[1734384381288,9.77356543,217.9,217.84,9.77356543]
[1734384381870,1.5024,217.94,217.86,9.77356543]
[1734384382165,9.77356543,217.93,217.86,9.77356543]
[1734384383091,2.72465104,217.96,217.83,1.6623]
[1734384383092,9.77356543,217.94,217.87,9.77356543]
[1734384383263,9.77356543,217.93,217.86,9.77356543]
[1734384384283,9.77356543,217.94,217.87,9.77356543]
[1734384385376,9.77356543,217.93,217.86,9.77356543]
[1734384388096,9.77356543,217.92,217.86,9.77356543]
[1734384388475,9.77356543,217.92,217.85,9.77356543]
[1734384388676,23.776884,217.98,217.87,9.77356543]
[1734384388900,9.77356543,217.94,217.88,9.77356543]
[1734384390205,9.77356543,217.95,217.88,9.77356543]
[1734384394514,9.77356543,217.94,217.88,9.77356543]
[1734384395020,9.77356543,217.91,217.85,9.77356543]
[1734384395184,20.0,217.95,217.85,9.77356543]
[1734384395185,9.77356543,217.92,217.85,9.77356543]
[1734384395899,9.77356543,217.93,217.86,9.77356543]
[1734384396784,9.77356543,217.91,217.83,1.6623]
[1734384397001,9.77356543,217.91,217.84,9.77356543]
[1734384397196,20.0,217.95,217.87,9.77356543]
[1734384397429,29.77356543,217.95,217.88,9.77356543]
[1734384398047,9.77356543,217.94,217.88,9.77356543]
[1734384398213,7.9936,218.05,217.93,9.77356543]
[1734384398401,9.77356543,218.02,217.95,9.77356543]
[1734384399626,9.77356543,218.01,217.94,9.77356543]
[1734384399840,9.77356543,218.0,217.93,9.77356543]
[1734384400310,9.77356543,217.99,217.92,9.77356543]
[1734384400512,9.77356543,217.98,217.9,1.582]
[1734384400842,9.77356543,217.98,217.91,9.77356543]
[1734384401838,9.77356543,217.98,217.92,9.77356543]
[1734384402441,23.776884,218.03,217.9,1.582]
[1734384402442,9.77356543,218.0,217.93,9.77356543]
[1734384402610,23.776884,218.03,217.94,9.77356543]
[1734384402814,9.77356543,218.0,217.94,9.77356543]
[1734384403456,9.77356543,217.99,217.93,9.77356543]
[1734384404237,9.77356543,217.99,217.9,1.582]
[1734384404238,9.77356543,217.99,217.92,9.77356543]
[1734384404548,9.77356543,217.99,217.9,1.582]
[1734384404549,0.12549,218.03,217.94,9.77356543]
[1734384405018,9.77356543,218.01,217.94,9.77356543]
[1734384406841,0.12549,218.03,217.95,9.77356543]
[1734384407059,9.89905543,218.03,217.96,9.77356543]
[1734384409250,16.169565,218.11,218.0,9.77356543]
[1734384409433,16.169565,218.11,217.96,6.5854]
[1734384409434,16.169565,218.11,218.01,9.77356543]
[1734384409637,9.77356543,218.07,218.0,9.77356543]
[1734384409836,9.77356543,218.07,217.99,9.77356543]
[1734384411659,23.776884,218.09,218.0,9.77356543]
[1734384411830,9.77356543,218.08,218.0,9.77356543]
[1734384413464,9.77356543,218.04,217.94,4.93079047]
[1734384413663,23.776884,218.09,217.93,4.92149348]
[1734384413664,9.77356543,218.03,217.93,4.92149348]
[1734384413830,9.77356543,218.03,217.96,9.77356543]
[1734384414229,9.77356543,218.03,217.93,4.92149348]
[1734384414431,9.77356543,218.03,217.96,9.77356543]
[1734384414647,9.77356543,218.03,217.93,4.92149348]
[1734384414648,0.12549,218.03,217.97,9.77356543]
[1734384414847,0.12549,218.03,217.98,9.77356543]
[1734384415951,2.77430331,218.1,217.99,9.77356543]
[1734384415952,20.0,218.08,217.99,9.77356543]
[1734384416143,9.77356543,218.07,218.0,9.77356543]
[1734384416859,9.77356543,218.07,217.99,9.77356543]
[1734384417158,9.77356543,218.06,217.99,9.77356543]
[1734384420063,9.77356543,218.06,217.98,9.77356543]
[1734384420269,9.77356543,218.03,217.96,9.77356543]
[1734384421547,25.417284,218.05,217.91,0.68803791]
[1734384421548,9.77356543,218.04,217.97,9.77356543]
[1734384421749,1.6404,218.05,217.99,9.77356543]
[1734384423456,9.77356543,218.04,217.97,9.77356543]
[1734384424042,1.6404,218.05,217.97,9.77356543]
[1734384424270,11.41396543,218.05,217.97,9.77356543]
[1734384424645,11.41396543,218.05,217.98,9.77356543]
[1734384426582,1.6404,218.05,217.98,9.77356543]
[1734384426772,11.41396543,218.05,217.98,9.77356543]
[1734384427174,1.6404,218.05,217.98,9.77356543]
[1734384427359,1.6404,218.05,217.99,9.77356543]
[1734384427674,0.12549,218.07,218.01,9.77356543]
[1734384428060,9.89905543,218.07,218.0,9.77356543]
[1734384428373,9.89905543,218.07,217.99,9.77356543]
[1734384428572,9.77356543,218.05,217.98,9.77356543]
[1734384428773,9.77356543,218.04,217.97,9.77356543]
[1734384429072,9.77356543,218.06,217.99,9.77356543]
[1734384429259,9.89905543,218.07,217.99,9.77356543]
[1734384429647,9.89905543,218.07,218.0,9.77356543]
[1734384429890,44.22019892,218.13,218.04,9.77356543]
[1734384429891,0.5415372,218.13,218.04,9.77356543]
[1734384430054,0.5415372,218.13,218.05,9.77356543]
[1734384430055,11.37356543,218.12,218.05,9.77356543]
[1734384430250,0.12549,218.11,218.05,9.77356543]
[1734384430773,0.12549,218.11,218.06,9.77356543]
[1734384430977,9.89905543,218.12,218.05,9.77356543]
[1734384431353,0.12549,218.12,218.05,9.77356543]
[1734384431553,9.89905543,218.12,218.05,9.77356543]
[1734384431746,9.89905543,218.12,218.04,9.77356543]
[1734384431950,9.77356543,218.11,218.04,9.77356543]
[1734384432255,9.89905543,218.12,218.04,9.77356543]
[1734384433075,23.902374,218.12,218.04,9.77356543]
[1734384433251,0.5415372,218.13,218.06,9.77356543]
[1734384433460,10.31510263,218.13,218.06,9.77356543]
[1734384434580,24.3184212,218.13,218.01,20.0]
[1734384434782,9.77356543,218.12,218.05,9.77356543]
[1734384435079,9.77356543,218.09,218.01,20.0]
[1734384435290,9.77356543,218.07,218.0,9.77356543]
[1734384436046,8.77356543,218.07,218.0,9.77356543]
[1734384436751,9.77356543,218.03,217.93,6.52369348]
[1734384436974,9.77356543,218.03,217.97,9.77356543]
[1734384437578,9.77356543,218.04,217.97,9.77356543]
[1734384440264,9.77356543,218.03,217.96,9.77356543]
[1734384440562,9.77356543,218.02,217.95,9.77356543]
[1734384442861,9.77356543,218.0,217.92,20.0]
[1734384443063,9.77356543,217.98,217.92,9.77356543]
[1734384443394,1.582,218.07,217.91,9.77356543]
[1734384443395,9.77356543,217.97,217.91,9.77356543]
[1734384443702,9.77356543,217.97,217.83,20.14440194]
[1734384443874,9.77356543,217.96,217.9,9.77356543]
[1734384444066,9.77356543,217.95,217.89,9.77356543]
[1734384444263,9.77356543,217.96,217.9,9.77356543]
[1734384444689,9.77356543,217.95,217.89,9.77356543]
[1734384444977,9.77356543,217.94,217.88,9.77356543]
[1734384445386,9.77356543,217.92,217.84,3.52487449]
[1734384445581,9.77356543,217.92,217.85,9.77356543]
[1734384445757,9.77356543,217.89,217.79,6.1203]
[1734384445961,9.77356543,217.89,217.82,9.77356543]
[1734384446577,9.77356543,217.89,217.79,6.1203]
[1734384446785,9.77356543,217.89,217.83,9.77356543]
[1734384446986,9.77356543,217.9,217.84,9.77356543]
[1734384447794,9.77356543,217.89,217.83,9.77356543]
[1734384448582,9.77356543,217.86,217.78,1.6602]
[1734384448891,9.77356543,217.86,217.8,9.77356543]
[1734384451393,9.77356543,217.85,217.8,9.77356543]
[1734384451582,9.77356543,217.86,217.8,9.77356543]
[1734384452365,9.77356543,217.87,217.8,9.77356543]
[1734384452991,9.77356543,217.86,217.79,9.77356543]
[1734384453781,0.12549,217.89,217.74,6.3961]
[1734384453782,9.77356543,217.84,217.78,9.77356543]
[1734384454706,9.77356543,217.85,217.79,9.77356543]
[1734384456698,9.77356543,217.84,217.78,9.77356543]
[1734384459108,20.0,217.86,217.78,9.77356543]
[1734384459400,20.0,217.89,217.81,9.77356543]
[1734384459615,9.77356543,217.87,217.81,9.77356543]
[1734384460413,9.77356543,217.86,217.8,9.77356543]
[1734384460787,9.77356543,217.86,217.79,9.77356543]
[1734384462025,9.77356543,217.85,217.74,6.3961]
[1734384462226,9.77356543,217.84,217.78,9.77356543]
[1734384464488,9.77356543,217.84,217.77,9.77356543]
[1734384464699,9.77356543,217.82,217.76,9.77356543]
[1734384465095,9.77356543,217.81,217.75,9.77356543]
[1734384465420,9.77356543,217.8,217.74,9.77356543]
[1734384466105,9.77356543,217.8,217.72,4.93079047]
[1734384466317,9.77356543,217.8,217.74,9.77356543]
[1734384469006,20.0,217.89,217.79,9.77356543]
[1734384469217,1.6234,217.9,217.81,9.77356543]
[1734384469218,9.77356543,217.88,217.81,9.77356543]
[1734384469528,9.77356543,217.87,217.81,9.77356543]
[1734384470602,9.77356543,217.86,217.8,9.77356543]
[1734384471632,9.77356543,217.87,217.81,9.77356543]
[1734384472735,9.77356543,217.87,217.8,9.77356543]
[1734384473834,20.0,217.89,217.82,9.77356543]
[1734384474039,29.77356543,217.89,217.82,9.77356543]
[1734384474622,20.0,217.89,217.82,9.77356543]
[1734384474824,29.77356543,217.89,217.82,9.77356543]
[1734384476152,29.77356543,217.89,217.76,8.25689331]
[1734384476153,9.77356543,217.88,217.81,9.77356543]
[1734384477345,9.77356543,217.86,217.79,9.77356543]
[1734384477517,9.77356543,217.85,217.76,7.5683]
[1734384477852,9.77356543,217.85,217.78,9.77356543]
[1734384478631,20.0,217.89,217.81,9.77356543]
[1734384478854,9.77356543,217.87,217.81,9.77356543]
[1734384479540,9.77356543,217.87,217.8,9.77356543]
[1734384479918,9.77356543,217.85,217.78,9.77356543]
[1734384480117,9.77356543,217.84,217.77,9.77356543]
[1734384481039,9.77356543,217.85,217.78,9.77356543]
[1734384481437,9.77356543,217.86,217.79,9.77356543]
[1734384482258,9.77356543,217.85,217.78,9.77356543]
[1734384482630,9.77356543,217.84,217.77,9.77356543]
[1734384483036,9.77356543,217.82,217.75,9.77356543]
[1734384483867,9.77356543,217.82,217.76,9.77356543]
[1734384486834,9.77356543,217.81,217.71,2.27781304]
[1734384487041,9.77356543,217.81,217.75,9.77356543]
[1734384487248,9.77356543,217.81,217.74,9.77356543]
[1734384487555,9.77356543,217.81,217.75,9.77356543]
[1734384488238,9.77356543,217.8,217.72,3.53333364]
[1734384488448,9.77356543,217.8,217.71,2.27781304]
[1734384488449,9.77356543,217.79,217.73,9.77356543]
[1734384488657,9.77356543,217.8,217.74,9.77356543]
[1734384490152,9.77356543,217.77,217.66,1.64]
[1734384490351,9.77356543,217.77,217.71,9.77356543]
[1734384490552,9.77356543,217.77,217.72,9.77356543]
[1734384493251,9.77356543,217.78,217.72,9.77356543]
[1734384493653,9.77356543,217.76,217.7,13.31148208]
[1734384493870,9.77356543,217.76,217.67,0.68886432]
[1734384494076,9.77356543,217.76,217.7,9.77356543]
[1734384494673,9.77356543,217.75,217.69,13.31089471]
[1734384494969,9.77356543,217.75,217.69,9.77356543]
[1734384495759,9.77356543,217.75,217.69,13.31069446]
[1734384496073,9.77356543,217.75,217.69,9.77356543]
[1734384496654,9.77356543,217.75,217.69,13.31021014]
[1734384496865,9.77356543,217.75,217.69,9.77356543]
[1734384497364,9.77356543,217.75,217.68,3.53609548]
[1734384497560,9.77356543,217.75,217.69,13.30966091]
[1734384497748,9.77356543,217.75,217.69,9.77356543]
[1734384498149,9.77356543,217.76,217.7,9.77356543]
[1734384498987,9.77356543,217.75,217.69,9.77356543]
[1734384499484,9.77356543,217.74,217.68,9.77356543]
[1734384499985,9.77356543,217.75,217.68,9.77356543]
[1734384500169,9.77356543,217.75,217.69,9.77356543]
[1734384503868,9.77356543,217.74,217.68,9.77356543]
[1734384504468,6.26219,217.78,217.66,9.77356543]
[1734384504783,9.77356543,217.72,217.66,9.77356543]
[1734384505365,9.77356543,217.73,217.67,9.77356543]
[1734384509361,9.77356543,217.73,217.61,2.55971079]
[1734384509362,9.77356543,217.72,217.66,9.77356543]
[1734384513561,6.26219,217.78,217.61,0.68897004]
[1734384513766,9.77356543,217.69,217.64,9.77356543]
[1734384513963,9.77356543,217.69,217.6,6.01940608]
[1734384514168,9.77356543,217.69,217.64,9.77356543]
[1734384514399,9.77356543,217.68,217.63,9.77356543]
[1734384516301,9.77356543,217.66,217.61,20.0]
[1734384516501,9.77356543,217.66,217.61,29.77356543]
[1734384516803,9.77356543,217.68,217.62,9.77356543]
[1734384517100,9.77356543,217.67,217.61,9.77356543]
[1734384518870,9.77356543,217.66,217.56,0.68910145]
[1734384519075,23.776884,217.71,217.56,0.68910145]
[1734384519076,9.77356543,217.65,217.56,0.68910145]
[1734384519372,9.77356543,217.65,217.59,9.77356543]
[1734384520982,9.77356543,217.62,217.53,0.68924001]
[1734384521181,9.77356543,217.64,217.53,0.68924001]
[1734384521390,9.77356543,217.64,217.53,20.68924001]
[1734384521602,9.77356543,217.63,217.57,9.77356543]
[1734384523599,9.77356543,217.62,217.56,9.77356543]
[1734384523785,9.77356543,217.62,217.53,20.68924001]
[1734384523982,9.77356543,217.62,217.56,9.77356543]
[1734384524792,1.5767,217.7,217.61,9.77356543]
[1734384525002,9.77356543,217.68,217.63,9.77356543]
[1734384526085,9.77356543,217.67,217.61,9.77356543]
[1734384526298,1.5767,217.7,217.53,25.0]
[1734384526299,9.77356543,217.64,217.54,0.68911996]
[1734384526503,9.77356543,217.64,217.58,9.77356543]
[1734384526888,9.77356543,217.64,217.59,9.77356543]
[1734384528920,9.77356543,217.64,217.54,0.68911996]
[1734384528921,9.77356543,217.64,217.58,9.77356543]
[1734384529103,1.5767,217.7,217.58,9.77356543]
[1734384529104,9.77356543,217.63,217.58,9.77356543]
[1734384529289,9.77356543,217.62,217.56,9.77356543]
[1734384529687,9.77356543,217.62,217.57,9.77356543]
[1734384529886,9.77356543,217.63,217.58,9.77356543]
[1734384530120,9.77356543,217.62,217.56,9.77356543]
[1734384531604,9.77356543,217.62,217.54,0.68911996]
[1734384531605,9.77356543,217.61,217.55,9.77356543]
[1734384534321,9.77356543,217.62,217.56,9.77356543]
[1734384534624,9.77356543,217.61,217.55,9.77356543]
[1734384535927,9.27356543,217.61,217.55,9.77356543]
[1734384536230,9.773565,217.66,217.6,9.77356543]
[1734384536401,19.54713043,217.66,217.61,9.77356543]
[1734384536604,9.77356543,217.66,217.61,9.77356543]
[1734384536803,9.77356543,217.65,217.6,9.77356543]
[1734384537233,9.77356543,217.63,217.55,0.68931888]
[1734384537541,9.77356543,217.63,217.57,9.77356543]
[1734384539402,9.77356543,217.62,217.56,9.77356543]
[1734384539607,9.77356543,217.61,217.54,0.68929646]
[1734384539822,9.77356543,217.61,217.55,9.77356543]
[1734384540333,0.12549,217.68,217.53,29.77356543]
[1734384540334,9.77356543,217.59,217.53,29.77356543]
[1734384540706,9.77356543,217.59,217.53,9.77356543]
[1734384541920,9.77356543,217.6,217.54,10.46289328]
[1734384543021,1.5439,217.63,217.57,9.77356543]
[1734384543348,9.77356543,217.63,217.57,9.77356543]
[1734384545328,20.0,217.67,217.58,10.46283067]
[1734384545535,9.77356543,217.63,217.58,0.68926524]
[1734384545740,9.77356543,217.6,217.53,20.0]
[1734384546041,9.77356543,217.61,217.55,9.77356543]
[1734384546251,21.6135,217.68,217.56,10.46283522]
[1734384546431,9.77356543,217.62,217.56,10.46283522]
[1734384546822,9.77356543,217.6,217.54,0.6892693]
[1734384547118,9.77356543,217.61,217.55,9.77356543]
[1734384548150,9.77356543,217.61,217.54,0.6892693]
[1734384548327,9.77356543,217.62,217.56,9.77356543]
[1734384549956,21.6135,217.68,217.57,10.46283953]
[1734384550253,9.77356543,217.63,217.57,10.46283953]
[1734384550859,21.6135,217.68,217.57,10.46283953]
[1734384550860,9.77356543,217.62,217.57,10.46283953]
[1734384551058,9.77356543,217.62,217.57,0.6892741]
[1734384551235,9.77356543,217.63,217.57,9.77356543]
[1734384551436,1.6135,217.68,217.6,9.77356543]
[1734384551653,9.77356543,217.66,217.61,0.68909093]
[1734384553155,9.77356543,217.65,217.61,0.68909093]
[1734384554238,1.6135,217.68,217.61,0.68909093]
[1734384554239,21.6135,217.68,217.61,0.68909093]
[1734384554458,9.77356543,217.64,217.59,0.68913271]
[1734384555459,1.6135,217.68,217.59,0.68913271]
[1734384555460,9.77356543,217.63,217.59,0.68913271]
[1734384555656,9.77356543,217.63,217.6,0.68915086]
[1734384556644,9.77356543,217.63,217.58,0.68914402]
[1734384558154,9.77356543,217.64,217.58,0.68914402]
[1734384558341,9.77356543,217.63,217.58,0.68914402]
[1734384558544,1.6135,217.68,217.56,1.5607]
[1734384558545,9.77356543,217.6,217.56,1.5607]
[1734384558744,9.77356543,217.61,217.56,1.5607]
[1734384561074,1.6135,217.68,217.56,1.5607]
[1734384561389,9.77356543,217.61,217.56,1.5607]
[1734384561679,9.77356543,217.6,217.56,1.5607]
[1734384561838,9.77356543,217.59,217.53,23.776884]
[1734384562044,9.77356543,217.59,217.53,33.55044943]
[1734384562260,9.77356543,217.6,217.54,10.46283277]
[1734384563553,1.6135,217.68,217.51,23.776884]
[1734384563554,9.77356543,217.59,217.51,23.776884]
[1734384563752,9.77356543,217.59,217.53,9.77356543]
[1734384563982,20.0,217.66,217.53,9.77356543]
[1734384564180,9.77356543,217.59,217.53,9.77356543]
[1734384566356,20.0,217.66,217.51,24.46618818]
[1734384566357,9.77356543,217.58,217.51,24.46618818]
[1734384566556,9.77356543,217.58,217.52,9.77356543]
[1734384566766,20.0,217.66,217.52,9.77356543]
[1734384566969,20.0,217.65,217.53,9.77356543]
[1734384567166,9.77356543,217.59,217.53,9.77356543]
[1734384567349,9.77356543,217.58,217.52,9.77356543]
[1734384568082,9.77356543,217.58,217.51,24.46618818]
[1734384568285,9.77356543,217.58,217.52,9.77356543]
[1734384568601,20.0,217.65,217.52,9.77356543]
[1734384568813,9.77356543,217.58,217.52,9.77356543]
[1734384569923,9.77356543,217.57,217.51,34.23975361]
[1734384576682,20.0,217.65,217.51,34.23975361]
[1734384576888,9.77356543,217.57,217.51,34.23975361]
[1734384577291,11.35196543,217.57,217.51,34.23975361]
[1734384577491,48.86782715,217.52,217.39,7.9011]
[1734384577681,9.77356543,217.4,217.39,1.587]
[1734384578395,9.77356543,217.4,217.37,0.5415372]
[1734384578588,9.77356543,217.38,217.37,0.5415372]
[1734384580900,9.77356543,217.4,217.37,0.5415372]
[1734384581119,9.77356543,217.4,217.37,1.23132825]
[1734384581914,1.5784,217.49,217.37,1.23132825]
[1734384582113,9.77356543,217.41,217.37,1.23132825]
[1734384582430,9.77356543,217.4,217.37,1.23132825]
[1734384586704,9.77356543,217.4,217.37,0.5415372]
[1734384587106,9.77356543,217.39,217.37,0.5415372]
[1734384591523,9.77356543,217.4,217.37,0.5415372]
[1734384594811,9.77356543,217.41,217.37,0.5415372]
[1734384595012,1.5784,217.49,217.39,9.77356543]
[1734384595213,1.5784,217.49,217.4,10.46331244]
[1734384595824,9.77356543,217.45,217.4,0.68974701]
[1734384597435,9.77356543,217.46,217.4,0.68974701]
[1734384598227,4.5965,217.56,217.4,0.68974701]
[1734384598228,0.6893792,217.59,217.48,20.0]
[1734384598430,2.2759792,217.61,217.51,9.77356543]
[1734384598620,9.77356543,217.58,217.51,9.77356543]
[1734384599115,9.77356543,217.57,217.5,9.77356543]
[1734384599532,2.2759792,217.61,217.51,10.46296837]
[1734384599747,9.77356543,217.57,217.51,10.46296837]
[1734384599943,9.77356543,217.59,217.52,9.77356543]
[1734384601046,9.77356543,217.58,217.51,9.77356543]
[1734384601743,9.77356543,217.59,217.52,9.77356543]
[1734384603151,2.75000115,217.66,217.55,9.77356543]
[1734384603152,1.5497,217.66,217.55,9.77356543]
[1734384603454,9.77356543,217.64,217.57,9.77356543]
[1734384604342,9.77356543,217.64,217.56,9.77356543]
[1734384604649,0.6893792,217.68,217.62,9.77356543]
[1734384604823,0.6893792,217.68,217.57,0.68924743]
[1734384604824,9.77356543,217.7,217.63,9.77356543]
[1734384606646,9.77356543,217.69,217.62,9.77356543]
[1734384607536,0.6893792,217.78,217.68,9.77356543]
[1734384607849,11.40316543,217.79,217.72,9.77356543]
[1734384608068,0.6893792,217.83,217.72,9.77356543]